fUSD/lending_fUSD_20240212
["ID","MTS","AMOUNT","RATE_DAILY","PERIOD"]
[313844102,1707749480356,-20917.3,0.00028019,2]
[313844103,1707749480366,-2287.0,0.00028019,2]
[313844104,1707749480377,-150.0,0.00028019,2]
[313844105,1707749480387,-150.0,0.00028019,2]
[313844106,1707749480397,-150.0,0.00028019,2]
[313844107,1707749480407,-1036.0,0.00028019,2]
[313844108,1707749480417,-6151.19,0.0002803,2]
[313844109,1707749480427,-1106.17,0.00028031,2]
[313844110,1707749480437,-5433.87,0.00028031,2]
[313844111,1707749480447,-686.02,0.00028031,2]
[313844112,1707749480458,-5002.24,0.00028031,2]
[313844113,1707749480468,-1282.89,0.00028031,2]
[313844114,1707749480479,-4545.74,0.00028031,2]
[313844115,1707749480490,-639.53,0.00028079,2]
[313844116,1707749480501,-920.58,0.00028079,2]
[313844117,1707749480511,-900.15,0.00028079,2]
[313844118,1707749480522,-1461.09,0.00028079,2]
[313844119,1707749480533,-587.81,0.00028079,2]
[313844120,1707749480545,-7766.59,0.00028123,2]
[313844121,1707749480558,-3859.6,0.00028123,2]
[313844122,1707749480569,-3196.37,0.00028123,2]
[313844123,1707749480580,-555.97,0.00028123,2]
[313844124,1707749480591,-500.0,0.00028123,2]
[313844125,1707749480601,-2487.26,0.00028123,2]
[313844126,1707749480611,-710.62,0.00028123,2]
[313844127,1707749480621,-1220.17,0.00028123,2]
[313844128,1707749480633,-698.32,0.00028123,2]
[313844129,1707749480644,-855.42,0.00028123,2]
[313844130,1707749480655,-695.43,0.00028123,2]
[313844131,1707749480665,-1944.8,0.00028123,2]
[313844132,1707749480679,-1365.41,0.00028123,2]
[313844133,1707749480690,-5273.64,0.00028123,2]
[313844134,1707749480700,-1034.4,0.00028123,2]
[313844135,1707749480711,-2858.6,0.00028123,2]
[313844136,1707749480722,-1468.93,0.00028123,2]
[313844137,1707749480732,-881.17,0.00028123,2]
[313844138,1707749480742,-500.0,0.00028123,2]
[313844139,1707749480753,-1639.87,0.00028123,2]
[313844140,1707749480763,-500.0,0.00028123,2]
[313844141,1707749480775,-1006.08,0.00028123,2]
[313844142,1707749480788,-659.03,0.00028123,2]
[313844143,1707749480798,-731.5,0.00028123,2]
[313844144,1707749480809,-875.47,0.00028123,2]
[313844145,1707749480820,-2501.35,0.00028123,2]
[313844146,1707749480830,-2026.22,0.00028123,2]
[313844147,1707749480841,-3714.48,0.00028123,2]
[313844148,1707749480852,-1998.1,0.00028123,2]
[313844149,1707749480864,-500.0,0.00028123,2]
[313844150,1707749480874,-1114.23,0.00028123,2]
[313844151,1707749480885,-522.51,0.00028123,2]
[313844152,1707749480896,-1070.93,0.00028124,2]
[313844153,1707749480907,-1391.19,0.00028124,2]
[313844154,1707749480918,-1079.7,0.00028124,2]
[313844155,1707749480930,-1574.12,0.00028124,2]
[313844156,1707749480940,-980.03,0.00028124,2]
[313844157,1707749480950,-2683.79,0.00028124,2]
[313844158,1707749480961,-500.0,0.00028124,2]
[313844159,1707749480972,-639.17,0.00028124,2]
[313844160,1707749480982,-659.69,0.00028124,2]
[313844161,1707749480993,-612.09,0.00028124,2]
[313844162,1707749481004,-1761.81,0.00028124,2]
[313844163,1707749481014,-940.52,0.00028124,2]
[313844164,1707749481026,-564.5,0.00028124,2]
[313844165,1707749481038,-1622.0,0.00028124,2]
[313844166,1707749481048,-3437.62,0.00028124,2]
[313844167,1707749481059,-617.57,0.00028124,2]
[313844168,1707749481069,-761.77,0.00028124,2]
[313844169,1707749481080,-500.0,0.00028124,2]
[313844170,1707749481090,-958.99,0.00028124,2]
[313844171,1707749481101,-535.46,0.00028124,2]
[313844172,1707749481111,-500.0,0.00028124,2]
[313844173,1707749481121,-500.0,0.00028124,2]
[313844174,1707749481132,-867.34,0.00028124,2]
[313844175,1707749481143,-682.52,0.00028124,2]
[313844176,1707749481155,-8830.94,0.00028124,2]
[313844177,1707749481166,-838.54,0.00028124,2]
[313844178,1707749481177,-1383.03,0.00028124,2]
[313844179,1707749481188,-769.24,0.00028124,2]
[313844180,1707749481198,-500.0,0.00028124,2]
[313844181,1707749481209,-1563.89,0.00028124,2]
[313844182,1707749481219,-3711.11,0.00028124,2]
[313844183,1707749481230,-967.49,0.00028124,2]
[313844184,1707749481240,-500.0,0.00028124,2]
[313844185,1707749481251,-173.15,0.00028163,2]
[313844186,1707749481262,-6151.19,0.00028189,2]
[313844187,1707749481273,-500.0,0.00028226,2]
[313844188,1707749481283,-1328.87,0.00028226,2]
[313844189,1707749481296,-537.67,0.00028226,2]
[313844190,1707749481305,-517.59,0.00028226,2]
[313844191,1707749481315,-763.45,0.00028226,2]
[313844192,1707749481325,-500.0,0.00028241,2]
[313844193,1707749481336,-500.0,0.00028241,2]
[313844194,1707749481347,-500.0,0.00028241,2]
[313844195,1707749481358,-500.0,0.00028241,2]
[313844196,1707749481368,-500.0,0.00028241,2]
[313844197,1707749481379,-500.0,0.00028241,2]
[313844198,1707749481389,-500.0,0.00028241,2]
[313844199,1707749481399,-500.0,0.00028241,2]
[313844200,1707749481410,-500.0,0.00028241,2]
[313844201,1707749481420,-500.0,0.00028241,2]
[313844202,1707749481430,-500.0,0.00028241,2]
[313844203,1707749481440,-500.0,0.00028241,2]
[313844204,1707749481451,-500.0,0.00028241,2]
[313844205,1707749481462,-500.0,0.00028241,2]
[313844206,1707749481473,-500.0,0.00028241,2]
[313844207,1707749481484,-500.0,0.00028241,2]
[313844208,1707749481495,-500.0,0.00028241,2]
[313844209,1707749481506,-500.0,0.00028241,2]
[313844210,1707749481517,-500.0,0.00028241,2]
[313844211,1707749481527,-500.0,0.00028241,2]
[313844212,1707749481540,-500.0,0.00028241,2]
[313844213,1707749481550,-500.0,0.00028241,2]
[313844214,1707749481560,-500.0,0.00028241,2]
[313844215,1707749481571,-500.0,0.00028241,2]
[313844216,1707749481580,-500.0,0.00028241,2]
[313844217,1707749481591,-500.0,0.00028241,2]
[313844218,1707749481601,-500.0,0.00028241,2]
[313844219,1707749481613,-500.0,0.00028241,2]
[313844220,1707749481623,-500.0,0.00028241,2]
[313844221,1707749481635,-500.0,0.00028241,2]
[313844222,1707749481645,-500.0,0.00028241,2]
[313844223,1707749481655,-500.0,0.00028241,2]
[313844224,1707749481666,-500.0,0.00028241,2]
[313844225,1707749481678,-500.0,0.00028241,2]
[313844226,1707749481689,-500.0,0.00028241,2]
[313844227,1707749481699,-500.0,0.00028241,2]
[313844228,1707749481709,-500.0,0.00028241,2]
[313844229,1707749481720,-500.0,0.00028241,2]
[313844230,1707749481731,-500.0,0.00028241,2]
[313844231,1707749481741,-500.0,0.00028241,2]
[313844232,1707749481752,-500.0,0.00028241,2]
[313844233,1707749481762,-500.0,0.00028241,2]
[313844234,1707749481773,-500.0,0.00028241,2]
[313844235,1707749481783,-500.0,0.00028241,2]
[313844236,1707749481797,-500.0,0.00028241,2]
[313844237,1707749481808,-500.0,0.00028241,2]
[313844238,1707749481818,-500.0,0.00028241,2]
[313844239,1707749481828,-500.0,0.00028241,2]
[313844240,1707749481839,-500.0,0.00028241,2]
[313844241,1707749481850,-500.0,0.00028241,2]
[313844242,1707749481860,-500.0,0.00028241,2]
[313844243,1707749481871,-500.0,0.00028241,2]
[313844244,1707749481882,-500.0,0.00028241,2]
[313844245,1707749481893,-500.0,0.00028241,2]
[313844246,1707749481904,-500.0,0.00028241,2]
[313844247,1707749481915,-500.0,0.00028241,2]
[313844248,1707749481925,-500.0,0.00028241,2]
[313844249,1707749481934,-500.0,0.00028241,2]
[313844250,1707749481945,-500.0,0.00028241,2]
[313844251,1707749481956,-500.0,0.00028241,2]
[313844252,1707749481967,-500.0,0.00028241,2]
[313844253,1707749481978,-500.0,0.00028241,2]
[313844254,1707749481989,-500.0,0.00028241,2]
[313844255,1707749482000,-500.0,0.00028241,2]
[313844256,1707749482011,-500.0,0.00028241,2]
[313844257,1707749482022,-500.0,0.00028241,2]
[313844258,1707749482032,-500.0,0.00028241,2]
[313844259,1707749482044,-500.0,0.00028241,2]
[313844260,1707749482055,-500.0,0.00028241,2]
[313844261,1707749482066,-500.0,0.00028241,2]
[313844262,1707749482076,-500.0,0.00028241,2]
[313844263,1707749482086,-500.0,0.00028241,2]
[313844264,1707749482096,-500.0,0.00028241,2]
[313844265,1707749482106,-500.0,0.00028241,2]
[313844266,1707749482115,-500.0,0.00028241,2]
[313844267,1707749482124,-500.0,0.00028241,2]
[313844268,1707749482135,-500.0,0.00028241,2]
[313844269,1707749482146,-500.0,0.00028241,2]
[313844270,1707749482155,-500.0,0.00028241,2]
[313844271,1707749482166,-500.0,0.00028241,2]
[313844272,1707749482176,-500.0,0.00028241,2]
[313844273,1707749482186,-500.0,0.00028241,2]
[313844274,1707749482197,-500.0,0.00028241,2]
[313844275,1707749482207,-500.0,0.00028241,2]
[313844276,1707749482217,-500.0,0.00028241,2]
[313844277,1707749482227,-500.0,0.00028241,2]
[313844278,1707749482237,-500.0,0.00028241,2]
[313844279,1707749482247,-500.0,0.00028241,2]
[313844280,1707749482257,-500.0,0.00028241,2]
[313844281,1707749482267,-500.0,0.00028241,2]
[313844282,1707749482278,-500.0,0.00028241,2]
[313844283,1707749482290,-500.0,0.00028241,2]
[313844284,1707749482299,-500.0,0.00028241,2]
[313844285,1707749482309,-500.0,0.00028241,2]
[313844286,1707749482319,-500.0,0.00028241,2]
[313844287,1707749482328,-500.0,0.00028241,2]
[313844288,1707749482338,-500.0,0.00028241,2]
[313844289,1707749482348,-500.0,0.00028241,2]
[313844290,1707749482358,-500.0,0.00028241,2]
[313844291,1707749482369,-500.0,0.00028241,2]
[313844292,1707749482380,-500.0,0.00028241,2]
[313844293,1707749482391,-500.0,0.00028241,2]
[313844294,1707749482402,-500.0,0.00028241,2]
[313844295,1707749482412,-500.0,0.00028241,2]
[313844296,1707749482423,-500.0,0.00028241,2]
[313844297,1707749482432,-500.0,0.00028241,2]
[313844298,1707749482444,-500.0,0.00028241,2]
[313844299,1707749482453,-500.0,0.00028241,2]
[313844300,1707749482463,-500.0,0.00028241,2]
[313844301,1707749482473,-500.0,0.00028241,2]
[313844302,1707749482483,-500.0,0.00028241,2]
[313844303,1707749482493,-500.0,0.00028241,2]
[313844304,1707749482503,-500.0,0.00028241,2]
[313844305,1707749482512,-500.0,0.00028241,2]
[313844306,1707749482522,-500.0,0.00028241,2]
[313844307,1707749482531,-500.0,0.00028241,2]
[313844308,1707749482543,-500.0,0.00028241,2]
[313844309,1707749482553,-500.0,0.00028241,2]
[313844310,1707749482562,-500.0,0.00028241,2]
[313844311,1707749482573,-500.0,0.00028241,2]
[313844312,1707749482583,-500.0,0.00028241,2]
[313844313,1707749482594,-500.0,0.00028241,2]
[313844314,1707749482605,-500.0,0.00028241,2]
[313844315,1707749482614,-500.0,0.00028241,2]
[313844316,1707749482625,-500.0,0.00028241,2]
[313844317,1707749482636,-500.0,0.00028241,2]
[313844318,1707749482646,-500.0,0.00028241,2]
[313844319,1707749482655,-500.0,0.00028241,2]
[313844320,1707749482666,-500.0,0.00028241,2]
[313844321,1707749482679,-500.0,0.00028241,2]
[313844322,1707749482690,-500.0,0.00028241,2]
[313844323,1707749482700,-500.0,0.00028241,2]
[313844324,1707749482710,-500.0,0.00028241,2]
[313844325,1707749482720,-500.0,0.00028241,2]
[313844326,1707749482730,-500.0,0.00028241,2]
[313844327,1707749482741,-500.0,0.00028241,2]
[313844328,1707749482752,-500.0,0.00028241,2]
[313844329,1707749482762,-500.0,0.00028241,2]
[313844330,1707749482773,-500.0,0.00028241,2]
[313844331,1707749482782,-500.0,0.00028241,2]
[313844332,1707749482795,-500.0,0.00028241,2]
[313844333,1707749482805,-500.0,0.00028241,2]
[313844334,1707749482815,-500.0,0.00028241,2]
[313844335,1707749482824,-500.0,0.00028241,2]
[313844336,1707749482834,-500.0,0.00028241,2]
[313844337,1707749482844,-500.0,0.00028241,2]
[313844338,1707749482854,-500.0,0.00028241,2]
[313844339,1707749482864,-500.0,0.00028241,2]
[313844340,1707749482875,-500.0,0.00028241,2]
[313844341,1707749482885,-500.0,0.00028241,2]
[313844342,1707749482895,-500.0,0.00028241,2]
[313844343,1707749482905,-500.0,0.00028241,2]
[313844344,1707749482915,-500.0,0.00028241,2]
[313844345,1707749482926,-500.0,0.00028241,2]
[313844346,1707749482936,-500.0,0.00028241,2]
[313844347,1707749482946,-500.0,0.00028241,2]
[313844348,1707749482957,-500.0,0.00028241,2]
[313844349,1707749482967,-500.0,0.00028241,2]
[313844350,1707749482977,-500.0,0.00028241,2]
[313844351,1707749482986,-500.0,0.00028241,2]
[313844352,1707749482997,-500.0,0.00028241,2]
[313844353,1707749483007,-500.0,0.00028241,2]
[313844354,1707749483017,-500.0,0.00028241,2]
[313844355,1707749483027,-500.0,0.00028241,2]
[313844356,1707749483037,-500.0,0.00028241,2]
[313844357,1707749483047,-450.0,0.00028241,2]
[313844358,1707749483057,-500.0,0.00028241,2]
[313844359,1707749483067,-500.0,0.00028241,2]
[313844360,1707749483077,-500.0,0.00028241,2]
[313844361,1707749483086,-500.0,0.00028241,2]
[313844362,1707749483096,-500.0,0.00028241,2]
[313844363,1707749483106,-500.0,0.00028241,2]
[313844364,1707749483115,-500.0,0.00028241,2]
[313844365,1707749483125,-500.0,0.00028241,2]
[313844366,1707749483135,-500.0,0.00028241,2]
[313844367,1707749483144,-500.0,0.00028241,2]
[313844368,1707749483154,-500.0,0.00028241,2]
[313844369,1707749483164,-500.0,0.00028241,2]
[313844370,1707749483174,-500.0,0.00028241,2]
[313844371,1707749483183,-500.0,0.00028241,2]
[313844372,1707749483193,-500.0,0.00028241,2]
[313844373,1707749483203,-500.0,0.00028241,2]
[313844374,1707749483213,-500.0,0.00028241,2]
[313844375,1707749483223,-500.0,0.00028241,2]
[313844376,1707749483233,-500.0,0.00028241,2]
[313844377,1707749483242,-500.0,0.00028241,2]
[313844378,1707749483252,-500.0,0.00028241,2]
[313844379,1707749483263,-500.0,0.00028241,2]
[313844380,1707749483274,-500.0,0.00028241,2]
[313844381,1707749483285,-500.0,0.00028241,2]
[313844382,1707749483295,-500.0,0.00028241,2]
[313844383,1707749483306,-500.0,0.00028241,2]
[313844384,1707749483317,-500.0,0.00028241,2]
[313844385,1707749483328,-500.0,0.00028241,2]
[313844386,1707749483338,-500.0,0.00028241,2]
[313844387,1707749483347,-500.0,0.00028241,2]
[313844388,1707749483357,-500.0,0.00028241,2]
[313844389,1707749483367,-500.0,0.00028241,2]
[313844390,1707749483377,-500.0,0.00028241,2]
[313844391,1707749483387,-500.0,0.00028241,2]
[313844392,1707749483397,-500.0,0.00028241,2]
[313844393,1707749483407,-500.0,0.00028241,2]
[313844394,1707749483417,-500.0,0.00028241,2]
[313844395,1707749483426,-500.0,0.00028241,2]
[313844396,1707749483553,-500.0,0.00028241,2]
[313844397,1707749483596,-500.0,0.00028241,2]
[313844398,1707749483606,-500.0,0.00028241,2]
[313844399,1707749483615,-500.0,0.00028241,2]
[313844400,1707749483625,-500.0,0.00028241,2]
[313844401,1707749483636,-500.0,0.00028241,2]
[313844402,1707749483645,-500.0,0.00028241,2]
[313844403,1707749483655,-500.0,0.00028241,2]
[313844404,1707749483665,-500.0,0.00028241,2]
[313844405,1707749483677,-500.0,0.00028241,2]
[313844406,1707749483687,-500.0,0.00028241,2]
[313844407,1707749483697,-500.0,0.00028241,2]
[313844408,1707749483707,-500.0,0.00028241,2]
[313844409,1707749483718,-500.0,0.00028241,2]
[313844410,1707749483728,-500.0,0.00028241,2]
[313844411,1707749483739,-500.0,0.00028241,2]
[313844412,1707749483748,-500.0,0.00028241,2]
[313844413,1707749483759,-500.0,0.00028241,2]
[313844414,1707749483769,-500.0,0.00028241,2]
[313844415,1707749483779,-500.0,0.00028241,2]
[313844416,1707749483790,-500.0,0.00028241,2]
[313844417,1707749483800,-500.0,0.00028241,2]
[313844418,1707749483810,-500.0,0.00028241,2]
[313844419,1707749483820,-500.0,0.00028241,2]
[313844420,1707749483830,-500.0,0.00028241,2]
[313844421,1707749483841,-500.0,0.00028241,2]
[313844422,1707749483852,-500.0,0.00028241,2]
[313844423,1707749483862,-500.0,0.00028241,2]
[313844424,1707749483872,-500.0,0.00028241,2]
[313844425,1707749483881,-500.0,0.00028241,2]
[313844426,1707749483891,-500.0,0.00028241,2]
[313844427,1707749483901,-500.0,0.00028241,2]
[313844428,1707749483911,-500.0,0.00028241,2]
[313844429,1707749483921,-500.0,0.00028241,2]
[313844430,1707749483931,-500.0,0.00028241,2]
[313844431,1707749483941,-500.0,0.00028241,2]
[313844432,1707749483950,-500.0,0.00028241,2]
[313844433,1707749483960,-500.0,0.00028241,2]
[313844434,1707749483970,-500.0,0.00028241,2]
[313844435,1707749483981,-500.0,0.00028241,2]
[313844436,1707749483991,-500.0,0.00028241,2]
[313844437,1707749484001,-500.0,0.00028241,2]
[313844438,1707749484011,-500.0,0.00028241,2]
[313844439,1707749484021,-500.0,0.00028241,2]
[313844440,1707749484030,-500.0,0.00028241,2]
[313844441,1707749484041,-500.0,0.00028241,2]
[313844442,1707749484051,-500.0,0.00028241,2]
[313844443,1707749484061,-500.0,0.00028241,2]
[313844444,1707749484071,-500.0,0.00028241,2]
[313844445,1707749484081,-500.0,0.00028241,2]
[313844446,1707749484090,-500.0,0.00028241,2]
[313844447,1707749484100,-500.0,0.00028241,2]
[313844448,1707749484110,-500.0,0.00028241,2]
[313844449,1707749484120,-500.0,0.00028241,2]
[313844450,1707749484130,-500.0,0.00028241,2]
[313844451,1707749484141,-500.0,0.00028241,2]
[313844452,1707749484152,-500.0,0.00028241,2]
[313844453,1707749484162,-500.0,0.00028241,2]
[313844454,1707749484172,-500.0,0.00028241,2]
[313844455,1707749484183,-500.0,0.00028241,2]
[313844456,1707749484193,-500.0,0.00028241,2]
[313844457,1707749484205,-500.0,0.00028241,2]
[313844458,1707749484216,-500.0,0.00028241,2]
[313844459,1707749484226,-500.0,0.00028241,2]
[313844460,1707749484237,-500.0,0.00028241,2]
[313844461,1707749484247,-500.0,0.00028241,2]
[313844462,1707749484258,-500.0,0.00028241,2]
[313844463,1707749484269,-500.0,0.00028241,2]
[313844464,1707749484279,-500.0,0.00028241,2]
[313844465,1707749484293,-500.0,0.00028241,2]
[313844466,1707749484303,-500.0,0.00028241,2]
[313844467,1707749484315,-500.0,0.00028241,2]
[313844468,1707749484329,-500.0,0.00028241,2]
[313844469,1707749484339,-500.0,0.00028241,2]
[313844470,1707749484349,-500.0,0.00028241,2]
[313844471,1707749484359,-500.0,0.00028241,2]
[313844472,1707749484370,-400.0,0.00028241,2]
[313844473,1707749484381,-500.0,0.00028241,2]
[313844474,1707749484391,-500.0,0.00028241,2]
[313844475,1707749484402,-500.0,0.00028241,2]
[313844476,1707749484412,-500.0,0.00028241,2]
[313844477,1707749484422,-500.0,0.00028241,2]
[313844478,1707749484434,-500.0,0.00028241,2]
[313844479,1707749484444,-500.0,0.00028241,2]
[313844480,1707749484454,-500.0,0.00028241,2]
[313844481,1707749484465,-500.0,0.00028241,2]
[313844482,1707749484474,-500.0,0.00028241,2]
[313844483,1707749484484,-500.0,0.00028241,2]
[313844484,1707749484494,-500.0,0.00028241,2]
[313844485,1707749484504,-500.0,0.00028241,2]
[313844486,1707749484514,-500.0,0.00028241,2]
[313844487,1707749484523,-500.0,0.00028241,2]
[313844488,1707749484533,-500.0,0.00028241,2]
[313844489,1707749484550,-500.0,0.00028241,2]
[313844490,1707749484559,-500.0,0.00028241,2]
[313844491,1707749484569,-500.0,0.00028241,2]
[313844492,1707749484579,-500.0,0.00028241,2]
[313844493,1707749484588,-500.0,0.00028241,2]
[313844494,1707749484598,-500.0,0.00028241,2]
[313844495,1707749484607,-500.0,0.00028241,2]
[313844496,1707749484618,-500.0,0.00028241,2]
[313844497,1707749484629,-500.0,0.00028241,2]
[313844498,1707749484640,-500.0,0.00028241,2]
[313844499,1707749484651,-500.0,0.00028241,2]
[313844500,1707749484661,-500.0,0.00028241,2]
[313844501,1707749484671,-500.0,0.00028241,2]
[313844502,1707749484683,-500.0,0.00028241,2]
[313844503,1707749484694,-500.0,0.00028241,2]
[313844504,1707749484704,-500.0,0.00028241,2]
[313844505,1707749484714,-500.0,0.00028241,2]
[313844506,1707749484726,-250.254054,0.00028241,7]
[313844507,1707749484736,-151.0,0.00028241,7]
[313844508,1707749484746,-1106.17,0.00028305,2]
[313844509,1707749484756,-5433.87,0.00028305,2]
[313844510,1707749484768,-686.02,0.00028305,2]
[313844511,1707749484779,-5002.24,0.00028305,2]
[313844512,1707749484790,-1282.89,0.00028305,2]
[313844513,1707749484801,-4545.74,0.00028305,2]
[313844514,1707749484811,-6151.19,0.00028347,2]
[313844515,1707749484822,-639.53,0.00028353,2]
[313844516,1707749484833,-920.58,0.00028353,2]
[313844517,1707749484844,-900.15,0.00028353,2]
[313844518,1707749484855,-1461.09,0.00028353,2]
[313844519,1707749484867,-587.81,0.00028353,2]
[313844520,1707749484879,-7766.59,0.00028397,2]
[313844521,1707749484890,-3859.6,0.00028397,2]
[313844522,1707749484901,-3196.37,0.00028397,2]
[313844523,1707749484912,-555.97,0.00028397,2]
[313844524,1707749484923,-559.30226659,0.00028397,2]
[313844525,1707749484935,-2487.26,0.00028397,2]
[313844526,1707749484945,-710.62,0.00028397,2]
[313844527,1707749484955,-1220.17,0.00028397,2]
[313844528,1707749484966,-698.32,0.00028397,2]
[313844529,1707749484976,-855.42,0.00028397,2]
[313844530,1707749484986,-695.43,0.00028397,2]
[313844531,1707749484997,-1944.8,0.00028397,2]
[313844532,1707749485008,-1365.41,0.00028397,2]
[313844533,1707749485018,-5273.64,0.00028397,2]
[313844534,1707749485029,-1034.4,0.00028397,2]
[313844535,1707749485040,-2858.6,0.00028397,2]
[313844536,1707749485050,-1468.93,0.00028397,2]
[313844537,1707749485060,-881.17,0.00028397,2]
[313844538,1707749485071,-500.0,0.00028397,2]
[313844539,1707749485081,-1639.87,0.00028397,2]
[313844540,1707749485091,-224.29520498,0.00028397,2]
[313844541,1707749485102,-1006.08,0.00028397,2]
[313844542,1707749485112,-659.03,0.00028397,2]
[313844543,1707749485122,-731.5,0.00028397,2]
[313844544,1707749485132,-875.47,0.00028397,2]
[313844545,1707749485141,-2501.35,0.00028397,2]
[313844546,1707749485151,-2026.22,0.00028397,2]
[313844547,1707749485161,-3714.48,0.00028397,2]
[313844548,1707749485171,-1998.1,0.00028397,2]
[313844549,1707749485181,-329.66999176,0.00028397,2]
[313844550,1707749485191,-1114.23,0.00028397,2]
[313844551,1707749485201,-1070.93,0.00028398,2]
[313844552,1707749485212,-1391.19,0.00028398,2]
[313844553,1707749485222,-1079.7,0.00028398,2]
[313844554,1707749485233,-1574.12,0.00028398,2]
[313844555,1707749485243,-980.03,0.00028398,2]
[313844556,1707749485254,-2683.79,0.00028398,2]
[313844557,1707749485265,-244.30591551,0.00028398,2]
[313844558,1707749485274,-639.17,0.00028398,2]
[313844559,1707749485286,-659.69,0.00028398,2]
[313844560,1707749485299,-612.09,0.00028398,2]
[313844561,1707749485310,-1761.81,0.00028398,2]
[313844562,1707749485321,-940.52,0.00028398,2]
[313844563,1707749485331,-564.5,0.00028398,2]
[313844564,1707749485341,-1622.0,0.00028398,2]
[313844565,1707749485351,-3437.62,0.00028398,2]
[313844566,1707749485362,-617.57,0.00028398,2]
[313844567,1707749485371,-761.77,0.00028398,2]
[313844568,1707749485382,-500.0,0.00028398,2]
[313844569,1707749485393,-958.99,0.00028398,2]
[313844570,1707749485403,-535.46,0.00028398,2]
[313844571,1707749485414,-500.0,0.00028398,2]
[313844572,1707749485424,-500.0,0.00028398,2]
[313844573,1707749485434,-867.34,0.00028398,2]
[313844574,1707749485445,-682.52,0.00028398,2]
[313844575,1707749485455,-8830.94,0.00028398,2]
[313844576,1707749485466,-838.54,0.00028398,2]
[313844577,1707749485476,-1383.03,0.00028398,2]
[313844578,1707749485486,-769.24,0.00028398,2]
[313844579,1707749485496,-523.60211561,0.00028398,2]
[313844580,1707749485506,-1563.89,0.00028398,2]
[313844581,1707749485516,-3711.11,0.00028398,2]
[313844582,1707749485526,-967.49,0.00028398,2]
[313844583,1707749485536,-195.99226752,0.00028398,2]
[313844584,1707749485548,-500.0,0.000285,2]
[313844585,1707749485558,-1328.87,0.000285,2]
[313844586,1707749485568,-537.67,0.000285,2]
[313844587,1707749485578,-517.59,0.000285,2]
[313844588,1707749485589,-763.45,0.000285,2]
[313844589,1707749485599,-920.9,0.000285,2]
[313844590,1707749485609,-346.0,0.000285,2]
[313844591,1707749485620,-936.0,0.000285,2]
[313844592,1707749485630,-6151.19,0.00028505,2]
[313844593,1707749485642,-1106.17,0.00028579,2]
[313844594,1707749485653,-5433.87,0.00028579,2]
[313844595,1707749485664,-686.02,0.00028579,2]
[313844596,1707749485676,-5002.24,0.00028579,2]
[313844597,1707749485687,-1282.89,0.00028579,2]
[313844598,1707749485697,-4545.74,0.00028579,2]
[313844599,1707749485708,-639.53,0.00028627,2]
[313844600,1707749485719,-920.58,0.00028627,2]
[313844601,1707749485730,-900.15,0.00028627,2]